[Event "Early-Titled-Tuesday-Blitz-July-09-2024"]
[Site "Chess.com"]
[Date "2024.07.09"]
[Round "5"]
[White "EternalNight8"]
[Black "abelmat"]
[Result "1-0"]
[WhiteElo "2377"]
[BlackElo "2118"]
[TimeControl "180+1"]
[EndTime "8:59:18 PDT"]
[Termination "EternalNight8 won by checkmate"]

1. d4 {[%clk 0:03:00.9]} 1... d5 {[%clk 0:02:55.7]} 2. c4 {[%clk 0:03:01]} 2...
e6 {[%clk 0:02:55.3]} 3. Nf3 {[%clk 0:03:00.7]} 3... Nf6 {[%clk 0:02:55.7]} 4.
g3 {[%clk 0:03:00.2]} 4... Be7 {[%clk 0:02:55.3]} 5. Bg2 {[%clk 0:03:00.7]} 5...
O-O {[%clk 0:02:55.1]} 6. O-O {[%clk 0:03:01.2]} 6... dxc4 {[%clk 0:02:54.4]} 7.
Qc2 {[%clk 0:03:01.8]} 7... a6 {[%clk 0:02:53.4]} 8. Qxc4 {[%clk 0:02:59.9]}
8... b5 {[%clk 0:02:53]} 9. Qc2 {[%clk 0:02:56.6]} 9... Bb7 {[%clk 0:02:53.5]}
10. Nc3 {[%clk 0:02:52.8]} 10... Nbd7 {[%clk 0:02:53.2]} 11. Rd1 {[%clk
0:02:47.8]} 11... Qc8 {[%clk 0:02:48.6]} 12. a3 {[%clk 0:02:30.7]} 12... c5
{[%clk 0:02:47.8]} 13. e4 {[%clk 0:02:19.3]} 13... cxd4 {[%clk 0:02:41.8]} 14.
Nxd4 {[%clk 0:02:18.4]} 14... Ne5 {[%clk 0:02:39.9]} 15. Bf4 {[%clk 0:02:10.2]}
15... Nc4 {[%clk 0:02:36.1]} 16. Qe2 {[%clk 0:01:42]} 16... Re8 {[%clk
0:02:12.1]} 17. e5 {[%clk 0:01:38.7]} 17... Nd7 {[%clk 0:01:38.1]} 18. h4 {[%clk
0:01:32.6]} 18... Bxg2 {[%clk 0:01:35.2]} 19. Kxg2 {[%clk 0:01:32.7]} 19... Qb7+
{[%clk 0:01:34.1]} 20. f3 {[%clk 0:01:30.6]} 20... Red8 {[%clk 0:01:20.2]} 21.
b3 {[%clk 0:01:16.4]} 21... Nxa3 {[%clk 0:01:11.4]} 22. Ne4 {[%clk 0:01:16.7]}
22... b4 {[%clk 0:00:56.3]} 23. h5 {[%clk 0:01:10.2]} 23... h6 {[%clk
0:00:54.7]} 24. Rac1 {[%clk 0:00:50]} 24... Rac8 {[%clk 0:00:53.7]} 25. Qe3
{[%clk 0:00:48.8]} 25... Bf8 {[%clk 0:00:52.2]} 26. g4 {[%clk 0:00:43.9]} 26...
Nc5 {[%clk 0:00:49.5]} 27. Nd6 {[%clk 0:00:35.3]} 27... Bxd6 {[%clk 0:00:46]}
28. exd6 {[%clk 0:00:36.2]} 28... e5 {[%clk 0:00:36.4]} 29. Bxe5 {[%clk
0:00:28.9]} 29... Rf8 {[%clk 0:00:34.7]} 30. Nf5 {[%clk 0:00:27]} 30... Ne6
{[%clk 0:00:31.1]} 31. Ne7+ {[%clk 0:00:26.4]} 31... Kh8 {[%clk 0:00:27]} 32.
Nxc8 {[%clk 0:00:26.7]} 32... Rxc8 {[%clk 0:00:24]} 33. d7 {[%clk 0:00:24.3]}
33... Rxc1 {[%clk 0:00:22.9]} 34. d8=Q+ {[%clk 0:00:21.4]} 34... Nxd8 {[%clk
0:00:22.2]} 35. Rxd8+ {[%clk 0:00:22.3]} 35... Kh7 {[%clk 0:00:21.8]} 36. Qxc1
{[%clk 0:00:22.5]} 36... Qe7 {[%clk 0:00:16.5]} 37. Qc7 {[%clk 0:00:19.1]} 37...
Qe6 {[%clk 0:00:14.5]} 38. Qd6 {[%clk 0:00:17.2]} 38... Qxb3 {[%clk 0:00:13.4]}
39. Qd3+ {[%clk 0:00:17]} 39... Qxd3 {[%clk 0:00:11.7]} 40. Rxd3 {[%clk
0:00:17.9]} 40... a5 {[%clk 0:00:11.1]} 41. Bc7 {[%clk 0:00:16.7]} 41... a4
{[%clk 0:00:10.6]} 42. Bd6 {[%clk 0:00:14.1]} 42... Nc4 {[%clk 0:00:05.9]} 43.
Bxb4 {[%clk 0:00:13.5]} 43... a3 {[%clk 0:00:06.6]} 44. Bxa3 {[%clk 0:00:13.5]}
44... Ne5 {[%clk 0:00:06.5]} 45. Rb3 {[%clk 0:00:13.3]} 45... Nc4 {[%clk
0:00:06.1]} 46. f4 {[%clk 0:00:13]} 46... Nd2 {[%clk 0:00:05.3]} 47. Rd3 {[%clk
0:00:12.4]} 47... Nc4 {[%clk 0:00:05.3]} 48. Bc1 {[%clk 0:00:12.3]} 48... g6
{[%clk 0:00:04.8]} 49. hxg6+ {[%clk 0:00:11.9]} 49... Kxg6 {[%clk 0:00:05.6]}
50. Rc3 {[%clk 0:00:11.8]} 50... f5 {[%clk 0:00:06.2]} 51. Rxc4 {[%clk
0:00:11.4]} 51... fxg4 {[%clk 0:00:05.8]} 52. Kg3 {[%clk 0:00:11.7]} 52... Kf5
{[%clk 0:00:06.7]} 53. Rc5+ {[%clk 0:00:11.8]} 53... Ke4 {[%clk 0:00:06.7]} 54.
Kxg4 {[%clk 0:00:12.3]} 54... h5+ {[%clk 0:00:07.5]} 55. Kxh5 {[%clk 0:00:12.1]}
55... Kd4 {[%clk 0:00:07.8]} 56. Rc8 {[%clk 0:00:11.8]} 56... Ke4 {[%clk
0:00:08.4]} 57. Re8+ {[%clk 0:00:11.3]} 57... Kf3 {[%clk 0:00:08.9]} 58. f5
{[%clk 0:00:11.3]} 58... Kg3 {[%clk 0:00:08]} 59. f6 {[%clk 0:00:11.5]} 59...
Kh2 {[%clk 0:00:08.7]} 60. f7 {[%clk 0:00:11.8]} 60... Kg3 {[%clk 0:00:09.4]}
61. f8=Q {[%clk 0:00:11.8]} 61... Kh3 {[%clk 0:00:10.3]} 62. Qf3+ {[%clk
0:00:11.9]} 62... Kh2 {[%clk 0:00:09.9]} 63. Re2+ {[%clk 0:00:12.6]} 63... Kg1
{[%clk 0:00:09.9]} 64. Qg2# {[%clk 0:00:13]} 1-0

[Event "Early-Titled-Tuesday-Blitz-July-09-2024"]
[Site "Chess.com"]
[Date "2024.07.09"]
[Round "5"]
[White "tptagain"]
[Black "Goryachkina"]
[Result "1-0"]
[WhiteElo "3049"]
[BlackElo "2672"]
[TimeControl "180+1"]
[EndTime "8:59:19 PDT"]
[Termination "tptagain won on time"]

1. d4 {[%clk 0:03:00.9]} 1... Nf6 {[%clk 0:02:57.4]} 2. Nf3 {[%clk 0:03:01.3]}
2... d5 {[%clk 0:02:56.6]} 3. e3 {[%clk 0:03:01.1]} 3... Bf5 {[%clk 0:02:52.5]}
4. c4 {[%clk 0:02:45.9]} 4... c6 {[%clk 0:02:52.5]} 5. Nc3 {[%clk 0:02:46]} 5...
e6 {[%clk 0:02:52.1]} 6. Nh4 {[%clk 0:02:43.7]} 6... Bg6 {[%clk 0:02:52]} 7.
Nxg6 {[%clk 0:02:40.8]} 7... hxg6 {[%clk 0:02:52.9]} 8. g3 {[%clk 0:02:38.1]}
8... Nbd7 {[%clk 0:02:49.3]} 9. Bg2 {[%clk 0:02:36.6]} 9... Bb4 {[%clk
0:02:37.7]} 10. O-O {[%clk 0:02:31.5]} 10... dxc4 {[%clk 0:02:36.1]} 11. Qe2
{[%clk 0:02:23.4]} 11... Nb6 {[%clk 0:02:35.8]} 12. Nb1 {[%clk 0:02:19]} 12...
Qe7 {[%clk 0:02:21]} 13. a3 {[%clk 0:02:15.5]} 13... Bd6 {[%clk 0:02:18]} 14.
Nd2 {[%clk 0:02:13.6]} 14... e5 {[%clk 0:02:18.1]} 15. Nxc4 {[%clk 0:02:12.8]}
15... Nxc4 {[%clk 0:02:16.1]} 16. Qxc4 {[%clk 0:02:12.4]} 16... O-O {[%clk
0:02:15.2]} 17. Bd2 {[%clk 0:02:03.7]} 17... exd4 {[%clk 0:02:14.4]} 18. exd4
{[%clk 0:02:03.6]} 18... Rfe8 {[%clk 0:01:58.1]} 19. Rfe1 {[%clk 0:02:01.6]}
19... Qd7 {[%clk 0:01:57.6]} 20. Rad1 {[%clk 0:01:53.9]} 20... Bc7 {[%clk
0:01:56.5]} 21. Qb3 {[%clk 0:01:42.7]} 21... Bb6 {[%clk 0:01:55.2]} 22. Bc3
{[%clk 0:01:19.9]} 22... Rxe1+ {[%clk 0:01:52.8]} 23. Rxe1 {[%clk 0:01:20]}
23... Rd8 {[%clk 0:01:52.8]} 24. Rd1 {[%clk 0:01:18.2]} 24... Qf5 {[%clk
0:01:49.1]} 25. Qc4 {[%clk 0:01:12.3]} 25... Qc2 {[%clk 0:01:24.8]} 26. Qd3
{[%clk 0:01:01.4]} 26... Qxd3 {[%clk 0:01:19.8]} 27. Rxd3 {[%clk 0:01:02.3]}
27... Nd5 {[%clk 0:01:19.7]} 28. h4 {[%clk 0:00:49.2]} 28... f5 {[%clk
0:01:18.3]} 29. Bd2 {[%clk 0:00:47]} 29... Kf7 {[%clk 0:01:17.2]} 30. Bg5 {[%clk
0:00:45.5]} 30... Rd7 {[%clk 0:01:17]} 31. Kf1 {[%clk 0:00:45.6]} 31... Nc7
{[%clk 0:01:15.5]} 32. Be3 {[%clk 0:00:44.5]} 32... Nd5 {[%clk 0:01:14.6]} 33.
Bg5 {[%clk 0:00:41.2]} 33... Nc7 {[%clk 0:01:14.3]} 34. Bf4 {[%clk 0:00:41.2]}
34... Ne6 {[%clk 0:00:58.9]} 35. d5 {[%clk 0:00:41.3]} 35... Nxf4 {[%clk
0:00:57.4]} 36. gxf4 {[%clk 0:00:39.7]} 36... Bc7 {[%clk 0:00:55.5]} 37. Rb3
{[%clk 0:00:33.3]} 37... Bxf4 {[%clk 0:00:53.3]} 38. dxc6 {[%clk 0:00:33.6]}
38... bxc6 {[%clk 0:00:53.5]} 39. Bxc6 {[%clk 0:00:34.2]} 39... Rc7 {[%clk
0:00:53.8]} 40. Bd5+ {[%clk 0:00:31.6]} 40... Kf6 {[%clk 0:00:53.9]} 41. Rb5
{[%clk 0:00:29.7]} 41... g5 {[%clk 0:00:49.7]} 42. hxg5+ {[%clk 0:00:27.9]}
42... Kxg5 {[%clk 0:00:49.2]} 43. b4 {[%clk 0:00:25.3]} 43... Be5 {[%clk
0:00:35.8]} 44. Be6 {[%clk 0:00:20.5]} 44... Kf4 {[%clk 0:00:35.8]} 45. Ke2
{[%clk 0:00:19.6]} 45... Rc2+ {[%clk 0:00:35.3]} 46. Ke1 {[%clk 0:00:14.5]}
46... g6 {[%clk 0:00:29.9]} 47. Bf7 {[%clk 0:00:14.9]} 47... g5 {[%clk
0:00:25.2]} 48. Be6 {[%clk 0:00:15.5]} 48... Rb2 {[%clk 0:00:15.6]} 49. Ra5
{[%clk 0:00:15.2]} 49... g4 {[%clk 0:00:11.2]} 50. Rxa7 {[%clk 0:00:12.3]} 50...
Bc3+ {[%clk 0:00:11.4]} 51. Kd1 {[%clk 0:00:12.2]} 51... Rxf2 {[%clk 0:00:11]}
52. Rf7 {[%clk 0:00:12.8]} 52... Ke5 {[%clk 0:00:10.3]} 53. Bc8 {[%clk
0:00:12.8]} 53... g3 {[%clk 0:00:10.5]} 54. Rg7 {[%clk 0:00:12.2]} 54... g2
{[%clk 0:00:10.7]} 55. Bb7 {[%clk 0:00:09.1]} 55... Rf1+ {[%clk 0:00:10.1]} 56.
Kc2 {[%clk 0:00:09.8]} 56... g1=Q {[%clk 0:00:10.8]} 57. Rxg1 {[%clk 0:00:10.1]}
57... Rxg1 {[%clk 0:00:11.2]} 58. Kxc3 {[%clk 0:00:11]} 58... f4 {[%clk
0:00:10.2]} 59. a4 {[%clk 0:00:11.2]} 59... f3 {[%clk 0:00:09.9]} 60. Bxf3
{[%clk 0:00:08]} 60... Rg3 {[%clk 0:00:10.3]} 61. Kc4 {[%clk 0:00:08.9]} 61...
Rxf3 {[%clk 0:00:10.5]} 62. Kc5 {[%clk 0:00:09.5]} 62... Rc3+ {[%clk 0:00:08.9]}
63. Kb6 {[%clk 0:00:09.9]} 63... Kd6 {[%clk 0:00:07.6]} 64. b5 {[%clk
0:00:10.4]} 64... Kd7 {[%clk 0:00:06.9]} 65. a5 {[%clk 0:00:06.4]} 65... Rc7
{[%clk 0:00:04.8]} 66. a6 {[%clk 0:00:05.8]} 66... Kc8 {[%clk 0:00:05.2]} 67. a7
{[%clk 0:00:06.4]} 1-0

[Event "Early-Titled-Tuesday-Blitz-July-09-2024"]
[Site "Chess.com"]
[Date "2024.07.09"]
[Round "5"]
[White "madmax011"]
[Black "cmunda"]
[Result "1/2-1/2"]
[WhiteElo "2366"]
[BlackElo "2104"]
[TimeControl "180+1"]
[EndTime "8:59:20 PDT"]
[Termination "Game drawn - insufficient material"]

1. d4 {[%clk 0:03:00.9]} 1... e6 {[%clk 0:02:58.3]} 2. c4 {[%clk 0:03:01]} 2...
b6 {[%clk 0:02:57.7]} 3. Nf3 {[%clk 0:03:00.3]} 3... Bb7 {[%clk 0:02:58]} 4. g3
{[%clk 0:03:00.5]} 4... f5 {[%clk 0:02:58.1]} 5. Bg2 {[%clk 0:02:58.8]} 5...
Bb4+ {[%clk 0:02:58.2]} 6. Nbd2 {[%clk 0:02:57.9]} 6... Nf6 {[%clk 0:02:58]} 7.
O-O {[%clk 0:02:58.4]} 7... O-O {[%clk 0:02:58.2]} 8. Nb3 {[%clk 0:02:55.4]}
8... a5 {[%clk 0:02:57.2]} 9. Qc2 {[%clk 0:02:47.1]} 9... a4 {[%clk 0:02:57]}
10. Nbd2 {[%clk 0:02:46.4]} 10... Bxd2 {[%clk 0:02:57]} 11. Bxd2 {[%clk
0:02:45.6]} 11... d6 {[%clk 0:02:57.1]} 12. b4 {[%clk 0:02:41.6]} 12... axb3
{[%clk 0:02:56]} 13. axb3 {[%clk 0:02:41.9]} 13... Rxa1 {[%clk 0:02:56]} 14.
Rxa1 {[%clk 0:02:42.8]} 14... Be4 {[%clk 0:02:55.6]} 15. Qb2 {[%clk 0:02:39.9]}
15... Qe8 {[%clk 0:02:55.8]} 16. Ra7 {[%clk 0:02:33.2]} 16... Qc8 {[%clk
0:02:51.5]} 17. b4 {[%clk 0:02:16]} 17... Nc6 {[%clk 0:02:51.4]} 18. Ra3 {[%clk
0:02:11]} 18... Qb7 {[%clk 0:02:48.4]} 19. b5 {[%clk 0:02:02.2]} 19... Ne7
{[%clk 0:02:47.9]} 20. Qa2 {[%clk 0:01:58.6]} 20... Ra8 {[%clk 0:02:43.8]} 21.
Rxa8+ {[%clk 0:01:53.1]} 21... Qxa8 {[%clk 0:02:44.7]} 22. Qxa8+ {[%clk
0:01:52.9]} 22... Bxa8 {[%clk 0:02:44.7]} 23. Ng5 {[%clk 0:01:52.1]} 23... Bxg2
{[%clk 0:02:44.1]} 24. Kxg2 {[%clk 0:01:52.2]} 24... e5 {[%clk 0:02:44.3]} 25.
dxe5 {[%clk 0:01:36.9]} 25... dxe5 {[%clk 0:02:43.4]} 26. Bc3 {[%clk 0:01:25.8]}
26... Ng6 {[%clk 0:02:37.3]} 27. h4 {[%clk 0:01:18.6]} 27... h5 {[%clk 0:02:37]}
28. Ne6 {[%clk 0:01:03.2]} 28... Ne8 {[%clk 0:02:36.6]} 29. Bb4 {[%clk
0:00:55.6]} 29... Kf7 {[%clk 0:02:33.8]} 30. Nd8+ {[%clk 0:00:53.4]} 30... Kf6
{[%clk 0:02:30]} 31. f3 {[%clk 0:00:46.8]} 31... Ne7 {[%clk 0:02:18.8]} 32. Bc3
{[%clk 0:00:39.2]} 32... Nd6 {[%clk 0:02:13.8]} 33. f4 {[%clk 0:00:31.2]} 33...
Nxc4 {[%clk 0:02:13.2]} 34. fxe5+ {[%clk 0:00:29.7]} 34... Nxe5 {[%clk
0:02:10.3]} 35. Kf2 {[%clk 0:00:29]} 35... Ng6 {[%clk 0:02:01.2]} 36. Nc6 {[%clk
0:00:26.2]} 36... Ke6 {[%clk 0:01:58.7]} 37. Nd4+ {[%clk 0:00:25.6]} 37... Kf6
{[%clk 0:01:58.2]} 38. Nc6 {[%clk 0:00:22.9]} 38... Ke6 {[%clk 0:01:49.4]} 39.
Nd4+ {[%clk 0:00:21.8]} 39... Kf6 {[%clk 0:01:30.1]} 40. Ke1 {[%clk 0:00:19.6]}
40... f4 {[%clk 0:01:06.3]} 41. gxf4 {[%clk 0:00:18.2]} 41... Nxf4 {[%clk
0:01:06.4]} 42. Nf3 {[%clk 0:00:14.1]} 42... Ng6 {[%clk 0:00:59.1]} 43. Kd2
{[%clk 0:00:14.4]} 43... Kf5 {[%clk 0:00:58.8]} 44. Nd4+ {[%clk 0:00:13.3]}
44... Ke4 {[%clk 0:00:58.2]} 45. Ne6 {[%clk 0:00:13.5]} 45... Nc4+ {[%clk
0:00:49.8]} 46. Kd1 {[%clk 0:00:13.8]} 46... Nxh4 {[%clk 0:00:49.9]} 47. Bxg7
{[%clk 0:00:11.9]} 47... Ng2 {[%clk 0:00:47.9]} 48. Nxc7 {[%clk 0:00:11.8]}
48... h4 {[%clk 0:00:47.8]} 49. Ne6 {[%clk 0:00:12.1]} 49... h3 {[%clk
0:00:47.1]} 50. Ng5+ {[%clk 0:00:12.3]} 50... Kd5 {[%clk 0:00:43.4]} 51. Nxh3
{[%clk 0:00:13.2]} 51... Kc5 {[%clk 0:00:43.4]} 52. Bf8+ {[%clk 0:00:11.7]}
52... Kxb5 {[%clk 0:00:43.2]} 53. e4 {[%clk 0:00:11.8]} 53... Nge3+ {[%clk
0:00:43.1]} 54. Ke2 {[%clk 0:00:11.6]} 54... Ng4 {[%clk 0:00:43.3]} 55. Kd3
{[%clk 0:00:10.1]} 55... Nge5+ {[%clk 0:00:42.3]} 56. Kd4 {[%clk 0:00:09.7]}
56... Kc6 {[%clk 0:00:42.8]} 57. Nf4 {[%clk 0:00:09.3]} 57... b5 {[%clk
0:00:43]} 58. Nd5 {[%clk 0:00:09.2]} 58... Nf3+ {[%clk 0:00:42.8]} 59. Kd3
{[%clk 0:00:08.5]} 59... Nfe5+ {[%clk 0:00:39.1]} 60. Kd4 {[%clk 0:00:08.2]}
60... Nf3+ {[%clk 0:00:39.2]} 61. Kc3 {[%clk 0:00:08.7]} 61... Ng5 {[%clk
0:00:38]} 62. Kb4 {[%clk 0:00:08.6]} 62... Nxe4 {[%clk 0:00:37.2]} 63. Ne7+
{[%clk 0:00:07.3]} 63... Kb6 {[%clk 0:00:35.3]} 64. Nd5+ {[%clk 0:00:07.4]}
64... Kc6 {[%clk 0:00:34.3]} 65. Ne7+ {[%clk 0:00:07.7]} 65... Kd7 {[%clk
0:00:34.5]} 66. Kxb5 {[%clk 0:00:07.6]} 66... Ncd6+ {[%clk 0:00:34.7]} 67. Kb4
{[%clk 0:00:06.3]} 67... Ke8 {[%clk 0:00:34.8]} 68. Nc6 {[%clk 0:00:04.9]} 68...
Kxf8 {[%clk 0:00:34.5]} 69. Ka5 {[%clk 0:00:04.9]} 69... Ke8 {[%clk 0:00:34]}
70. Kb4 {[%clk 0:00:05.8]} 70... Kd7 {[%clk 0:00:34.5]} 71. Nd4 {[%clk
0:00:06.7]} 71... Kc7 {[%clk 0:00:34.7]} 72. Nb5+ {[%clk 0:00:07.2]} 72... Nxb5
{[%clk 0:00:34.2]} 1/2-1/2

[Event "Early-Titled-Tuesday-Blitz-July-09-2024"]
[Site "Chess.com"]
[Date "2024.07.09"]
[Round "5"]
[White "MKlose11"]
[Black "klimkoj"]
[Result "1/2-1/2"]
[WhiteElo "2673"]
[BlackElo "2877"]
[TimeControl "180+1"]
[EndTime "8:59:28 PDT"]
[Termination "Game drawn - insufficient material"]

1. e4 {[%clk 0:02:54.7]} 1... c6 {[%clk 0:03:00.4]} 2. Nc3 {[%clk 0:02:52.8]}
2... d5 {[%clk 0:03:01.3]} 3. g3 {[%clk 0:02:51.9]} 3... Nf6 {[%clk 0:02:58.1]}
4. Bg2 {[%clk 0:02:51.1]} 4... e6 {[%clk 0:02:53.7]} 5. Nge2 {[%clk 0:02:49.7]}
5... dxe4 {[%clk 0:02:47.3]} 6. Nxe4 {[%clk 0:02:48.9]} 6... Nxe4 {[%clk
0:02:47.6]} 7. Bxe4 {[%clk 0:02:49.8]} 7... Nd7 {[%clk 0:02:48.4]} 8. d4 {[%clk
0:02:49]} 8... Nf6 {[%clk 0:02:48.4]} 9. Bg2 {[%clk 0:02:48.9]} 9... Be7 {[%clk
0:02:46.8]} 10. O-O {[%clk 0:02:48.8]} 10... O-O {[%clk 0:02:47.7]} 11. c3
{[%clk 0:02:43.9]} 11... Bd7 {[%clk 0:02:44.1]} 12. h3 {[%clk 0:02:40.5]} 12...
Qb6 {[%clk 0:02:43.9]} 13. Qb3 {[%clk 0:02:39]} 13... Rfd8 {[%clk 0:02:39.4]}
14. Re1 {[%clk 0:02:35.4]} 14... Nd5 {[%clk 0:02:35.1]} 15. Nf4 {[%clk
0:02:30.6]} 15... Bd6 {[%clk 0:02:31.8]} 16. Nxd5 {[%clk 0:02:23.8]} 16... cxd5
{[%clk 0:02:18.9]} 17. Qxb6 {[%clk 0:02:22.8]} 17... axb6 {[%clk 0:02:19.8]} 18.
a3 {[%clk 0:02:22.6]} 18... Ba4 {[%clk 0:02:18.2]} 19. Bf4 {[%clk 0:02:10.9]}
19... Bxf4 {[%clk 0:02:16.4]} 20. gxf4 {[%clk 0:02:11.8]} 20... Bc2 {[%clk
0:02:06.8]} 21. Kh2 {[%clk 0:02:11.1]} 21... Bf5 {[%clk 0:02:05.9]} 22. Kg3
{[%clk 0:02:08.9]} 22... Kf8 {[%clk 0:02:05.8]} 23. Bf3 {[%clk 0:02:06.9]} 23...
Ke7 {[%clk 0:02:05.8]} 24. h4 {[%clk 0:02:05.9]} 24... Kf6 {[%clk 0:02:05.3]}
25. Rh1 {[%clk 0:02:05]} 25... Ra5 {[%clk 0:02:02.4]} 26. Rad1 {[%clk 0:01:59]}
26... Rda8 {[%clk 0:02:01.4]} 27. Rd2 {[%clk 0:01:57.8]} 27... Ke7 {[%clk
0:01:52.9]} 28. h5 {[%clk 0:01:56.8]} 28... f6 {[%clk 0:01:51.3]} 29. Bg4 {[%clk
0:01:51.4]} 29... Bxg4 {[%clk 0:01:32.8]} 30. Kxg4 {[%clk 0:01:49.3]} 30... Kd6
{[%clk 0:01:31.4]} 31. Kf3 {[%clk 0:01:46.2]} 31... Re8 {[%clk 0:01:29.4]} 32.
Rg1 {[%clk 0:01:45.7]} 32... Re7 {[%clk 0:01:29.6]} 33. Ke3 {[%clk 0:01:42.8]}
33... Ra8 {[%clk 0:01:27.6]} 34. Kd3 {[%clk 0:01:40.8]} 34... Rf8 {[%clk
0:01:26.4]} 35. Re2 {[%clk 0:01:29.9]} 35... Rff7 {[%clk 0:01:22.3]} 36. f3
{[%clk 0:01:23.5]} 36... b5 {[%clk 0:01:08.9]} 37. Rg3 {[%clk 0:01:20.5]} 37...
e5 {[%clk 0:01:05.2]} 38. fxe5+ {[%clk 0:01:16.6]} 38... fxe5 {[%clk 0:01:06.1]}
39. dxe5+ {[%clk 0:01:16.4]} 39... Rxe5 {[%clk 0:01:07]} 40. Rxe5 {[%clk
0:01:16.6]} 40... Kxe5 {[%clk 0:01:07.9]} 41. Rg5+ {[%clk 0:01:15.9]} 41... Ke6
{[%clk 0:00:51.2]} 42. Kd4 {[%clk 0:01:13.6]} 42... Rd7 {[%clk 0:00:21.6]} 43.
Kc5 {[%clk 0:01:08.8]} 43... Kf6 {[%clk 0:00:21.1]} 44. Rg4 {[%clk 0:01:03.3]}
44... g6 {[%clk 0:00:14.7]} 45. hxg6 {[%clk 0:01:02.7]} 45... h5 {[%clk
0:00:14.4]} 46. Rg2 {[%clk 0:00:58]} 46... Rg7 {[%clk 0:00:15]} 47. Kxb5 {[%clk
0:00:51.7]} 47... Rxg6 {[%clk 0:00:14.9]} 48. Rh2 {[%clk 0:00:52.1]} 48... Rg5
{[%clk 0:00:14.9]} 49. Kb6 {[%clk 0:00:51]} 49... Ke5 {[%clk 0:00:08.5]} 50.
Kxb7 {[%clk 0:00:49.9]} 50... Kf4 {[%clk 0:00:08.7]} 51. a4 {[%clk 0:00:46.4]}
51... Kg3 {[%clk 0:00:04.7]} 52. Rh1 {[%clk 0:00:46.2]} 52... h4 {[%clk
0:00:04.1]} 53. a5 {[%clk 0:00:45.6]} 53... d4 {[%clk 0:00:04.4]} 54. cxd4
{[%clk 0:00:42]} 54... Rxa5 {[%clk 0:00:04.9]} 55. Kc6 {[%clk 0:00:40.3]} 55...
Ra4 {[%clk 0:00:02.5]} 56. d5 {[%clk 0:00:35.7]} 56... Rb4 {[%clk 0:00:03.1]}
57. f4 {[%clk 0:00:34]} 57... Rxb2 {[%clk 0:00:03.6]} 58. f5 {[%clk 0:00:33.6]}
58... Rf2 {[%clk 0:00:03]} 59. Rg1+ {[%clk 0:00:33.1]} 59... Kf4 {[%clk
0:00:01.7]} 60. f6 {[%clk 0:00:28.5]} 60... Ke5 {[%clk 0:00:02.3]} 61. Rg4
{[%clk 0:00:23.4]} 61... Rxf6+ {[%clk 0:00:02.4]} 62. Kc5 {[%clk 0:00:22.7]}
62... Rh6 {[%clk 0:00:02.6]} 63. Rg1 {[%clk 0:00:19.5]} 63... h3 {[%clk
0:00:03.1]} 64. Re1+ {[%clk 0:00:19.8]} 64... Kf4 {[%clk 0:00:03.3]} 65. d6
{[%clk 0:00:20.6]} 65... h2 {[%clk 0:00:02.7]} 66. d7 {[%clk 0:00:19.3]} 66...
Rh8 {[%clk 0:00:01.6]} 67. Kc6 {[%clk 0:00:15.1]} 67... Kg3 {[%clk 0:00:01.4]}
68. Ra1 {[%clk 0:00:14.5]} 68... Kg2 {[%clk 0:00:01.4]} 69. Kc7 {[%clk
0:00:14.9]} 69... h1=Q {[%clk 0:00:01.5]} 70. Rxh1 {[%clk 0:00:14.7]} 70... Kxh1
{[%clk 0:00:02.4]} 71. d8=Q {[%clk 0:00:14.8]} 71... Rxd8 {[%clk 0:00:03.1]} 72.
Kxd8 {[%clk 0:00:15.7]} 1/2-1/2